bitfinex/quotes_ETHUSD_20250914
["timestamp","ask_amount","ask_price","bid_price","bid_amount"]
[1757893553441,6.67253504,4612.7,4612.6,2.8458094]
[1757893553952,6.67253504,4612.7,4612.6,0.001]
[1757893554125,6.2669,4612.7,4612.6,0.001]
[1757893554327,6.2669,4612.7,4612.6,2.16897467]
[1757893556534,5.044,4612.7,4612.6,5.76031361]
[1757893557257,5.296,4612.7,4612.6,5.76031361]
[1757893558659,1.667,4612.7,4612.6,5.76031361]
[1757893558864,5.77343265,4612.7,4612.6,0.001]
[1757893559069,6.68533265,4612.7,4612.6,0.001]
[1757893562166,3.05633265,4612.7,4612.6,0.001]
[1757893562332,6.68433265,4612.7,4612.6,0.001]
[1757893565289,2.61423265,4612.7,4612.6,0.001]
[1757893565585,6.71483265,4612.7,4612.6,0.001]
[1757893566163,5.77343265,4612.7,4612.6,0.001]
[1757893566487,1.85323265,4612.7,4612.6,0.001]
[1757893566697,1.667,4612.7,4612.6,3.60243894]
[1757893566865,5.299,4612.7,4612.6,3.60243894]
[1757893567258,1.667,4612.7,4612.6,5.77041361]
[1757893567458,5.299,4612.7,4612.6,6.24791361]
[1757893567859,5.299,4612.7,4612.6,5.77041361]
[1757893568615,5.299,4612.7,4612.6,0.001]
[1757893568616,6.14033265,4612.7,4612.6,0.001]
[1757893568760,7.06913265,4612.7,4612.6,0.001]
[1757893569169,6.61193265,4612.7,4612.6,0.001]
[1757893569990,7.06913265,4612.7,4612.6,0.001]
[1757893570199,7.86113265,4612.7,4612.6,0.001]
[1757893570384,3.792,4612.6,4612.2,0.001]
[1757893570587,3.792,4612.4,4612.2,0.001]
[1757893570895,4.71911327,4612.5,4612.1,0.001]
[1757893570896,3.792,4612.2,4612.1,0.001]
[1757893571390,5.0125,4612.2,4612.1,0.001]
[1757893573593,5.6445,4612.2,4612.1,0.001]
[1757893573793,7.15165183,4612.2,4612.1,0.001]
[1757893574201,10.78465183,4612.2,4612.1,0.001]
[1757893574782,8.6455,4612.2,4612.1,0.001]
[1757893575257,3.9247,4612.2,4612.1,0.001]
[1757893575791,3.634,4612.2,4612.1,0.3088]
[1757893576661,3.634,4612.2,4612.1,2.4770097]
[1757893576864,3.634,4612.2,4612.1,0.3088]
[1757893577476,3.634,4612.2,4612.1,0.001]
[1757893578169,5.29208097,4612.2,4612.1,0.001]
[1757893579364,5.29408097,4612.2,4612.1,0.001]
[1757893580183,6.08608097,4612.2,4612.1,0.001]
[1757893580405,9.08608097,4612.2,4612.1,0.001]
[1757893581672,4.41633308,4612.2,4612.1,0.001]
[1757893581889,4.30243308,4612.2,4612.1,0.001]
[1757893582085,0.66743308,4612.2,4612.1,0.001]
[1757893582393,0.22985211,4612.2,4612.1,0.001]
[1757893582705,3.86485211,4612.2,4612.1,0.3088]
[1757893583620,3.86585211,4612.2,4612.1,0.3088]
[1757893584803,0.22985211,4612.2,4612.1,0.3088]
[1757893585019,0.22985211,4612.2,4612.1,2.9545097]
[1757893585231,3.86485211,4612.2,4612.1,2.9545097]
[1757893585402,0.22985211,4612.2,4612.1,3.2877097]
[1757893585592,3.86485211,4612.2,4612.1,3.2877097]
[1757893587028,3.86485211,4612.2,4612.1,0.001]
[1757893587230,4.61721829,4612.2,4612.1,0.001]
[1757893587429,5.08881829,4612.2,4612.1,0.001]
[1757893587831,4.32551829,4612.2,4612.1,0.001]
[1757893589214,5.54601829,4612.2,4612.1,0.001]
[1757893590810,4.61721829,4612.2,4612.1,0.001]
[1757893590993,5.05061829,4612.2,4612.1,0.001]
[1757893591535,6.33761829,4612.2,4612.1,0.001]
[1757893596446,5.41181829,4612.2,4612.1,0.001]
[1757893596729,4.32451829,4612.2,4612.1,0.2865]
[1757893597530,3.86385211,4612.2,4612.1,0.2865]
[1757893598793,3.86385211,4612.2,4612.1,0.001]
[1757893599444,4.59255211,4612.2,4612.1,0.001]
[1757893599730,4.15915211,4612.2,4612.1,0.001]
[1757893600122,3.86385211,4612.2,4612.1,0.001]
[1757893600421,4.61971829,4612.2,4612.1,0.001]
[1757893600620,6.34011829,4612.2,4612.1,0.001]
[1757893604248,6.42706885,4612.2,4612.1,0.001]
[1757893607817,9.42706885,4612.2,4612.1,0.001]
[1757893609026,5.79306885,4612.2,4612.1,0.001]
[1757893609242,9.42506885,4612.2,4612.1,0.001]
[1757893609452,5.79306885,4612.2,4612.1,0.001]
[1757893609756,8.49666885,4612.2,4612.1,0.001]
[1757893610052,8.93006885,4612.2,4612.1,0.001]
[1757893610719,9.42506885,4612.2,4612.1,0.001]
[1757893610917,4.86466885,4612.2,4612.1,0.001]
[1757893611118,4.48241829,4612.2,4612.1,0.2865]
[1757893611351,8.11441829,4612.2,4612.1,0.2865]
[1757893611952,0.69041829,4612.2,4612.1,0.2865]
[1757893612253,3.86185211,4612.2,4612.1,0.2865]
[1757893612553,0.22985211,4612.2,4612.1,0.7401]
[1757893612761,3.86185211,4612.2,4612.1,1.0733]
[1757893613256,3.86185211,4612.2,4612.1,3.2415097]
[1757893613754,3.86185211,4612.2,4612.1,1.0733]
[1757893614437,3.86185211,4612.2,4612.1,3.2415097]
[1757893615044,3.86185211,4612.2,4612.1,1.0733]
[1757893616418,0.22985211,4612.2,4612.1,3.2415097]
[1757893616618,3.86185211,4612.2,4612.1,3.2415097]
[1757893618255,0.22985211,4612.2,4612.1,3.2415097]
[1757893618460,0.22985211,4612.2,4612.1,4.66845924]
[1757893618761,0.74180968,4612.4,4612.3,2.16811569]
[1757893618978,4.37380968,4612.4,4612.3,2.16811569]
[1757893619157,3.632,4612.4,4612.3,3.26141569]
[1757893619359,3.632,4612.4,4612.3,3.94934135]
[1757893620397,1.669,4612.7,4612.3,1.78122566]
[1757893620691,1.669,4612.7,4612.6,14.00598096]
[1757893620851,4.888,4612.7,4612.6,15.14158096]
[1757893621048,0.002,4612.7,4612.6,15.99474668]
[1757893621345,0.002,4613.4,4613.1,2.16773969]
[1757893621574,0.236,4613.2,4613.1,2.18941708]
[1757893621774,0.236,4613.2,4613.1,7.06073989]
[1757893622080,0.236,4613.2,4613.1,6.30333969]
[1757893622784,0.236,4613.2,4613.1,6.73559166]
[1757893625273,0.002,4613.2,4613.1,6.73559166]
[1757893625585,0.002,4613.2,4613.1,5.90509166]
[1757893626749,0.2972,4613.2,4613.1,3.43225197]
[1757893626951,0.7318,4613.2,4612.1,0.4983]
[1757893627152,3.63,4613.1,4612.2,0.96695063]
[1757893627373,3.63,4613.1,4612.3,5.1681096]
[1757893627583,0.4346,4613.0,4612.2,1.39092026]
[1757893627764,0.4346,4613.0,4612.7,2.16788914]
[1757893628083,0.4346,4613.0,4612.3,3.0]
[1757893628084,0.2952,4612.8,4612.3,5.16811567]
[1757893628302,3.63,4613.1,4612.5,2.16797575]
[1757893628452,3.63,4613.1,4612.6,2.16795506]
[1757893628653,0.108,4612.6,4612.4,0.02168068]
[1757893628879,0.4366,4613.2,4612.9,2.16781301]
[1757893629066,3.631,4613.1,4612.9,2.16781301]
[1757893629892,3.631,4613.1,4613.0,2.16778668]
[1757893630118,0.002,4613.2,4613.0,0.3051]
[1757893630387,3.631,4613.1,4613.0,2.47288668]
[1757893631384,0.002,4613.2,4613.1,2.16773969]
[1757893631584,3.633,4613.2,4613.1,2.16773969]
[1757893631793,0.002,4613.2,4613.1,3.81940401]
[1757893631955,0.002,4613.2,4613.1,3.8410814]
[1757893632156,0.002,4613.2,4613.1,6.8410814]
[1757893632356,0.002,4613.2,4613.1,6.81940401]
[1757893634911,0.002,4613.4,4613.1,6.48620401]
[1757893635218,0.002,4613.7,4613.4,5.16757775]
[1757893635420,0.002,4613.7,4613.6,2.16750476]
[1757893635600,0.002,4613.7,4613.6,5.4942798]
[1757893635796,0.002,4613.7,4613.6,2.96990476]
[1757893636936,0.002,4613.7,4613.6,3.3247798]
[1757893637086,0.002,4613.7,4613.6,4.91135343]
[1757893637408,0.002,4613.7,4613.6,4.88967839]
[1757893638245,0.002,4613.7,4613.6,4.05917839]
[1757893638590,0.002,4613.7,4613.6,3.75407839]
[1757893640801,0.002,4613.7,4613.6,4.05917839]
[1757893641212,0.002,4613.7,4613.6,3.75407839]
[1757893641804,0.2972,4613.7,4613.6,3.75407839]
[1757893642023,0.2972,4613.7,4613.6,2.16750476]
[1757893642394,0.7318,4613.7,4613.6,2.16750476]
[1757893643202,4.8172,4613.7,4612.7,8.83800629]
[1757893643414,4.3826,4613.7,4613.0,2.16777821]
[1757893643614,0.4346,4613.6,4613.3,2.16761308]
[1757893643817,0.2952,4613.4,4613.1,2.16773969]
[1757893644008,0.108,4613.1,4612.9,3.0]
[1757893644326,0.7298,4613.0,4612.9,5.16783368]
[1757893644895,1.1872,4613.0,4612.9,5.16783368]
[1757893645627,0.7298,4613.0,4612.9,5.16783368]
[1757893645830,1.1872,4613.0,4612.9,5.16783368]
[1757893646325,0.7298,4613.0,4612.9,5.16783368]
[1757893646915,3.736,4613.1,4613.0,2.16778668]
[1757893649829,4.037,4613.1,4613.0,2.16778668]
[1757893651938,0.108,4613.1,4613.0,2.46088668]
[1757893652138,3.734,4613.1,4613.0,7.10766332]
[1757893652335,0.108,4613.1,4613.0,7.10766332]
[1757893653253,0.108,4613.1,4613.0,7.56666332]
[1757893655079,5.293,4613.4,4613.0,7.56666332]
[1757893655080,5.293,4613.4,4613.3,2.16764571]
[1757893655361,0.002,4613.9,4613.6,2.16750476]
[1757893655660,1.747,4614.8,4613.6,2.16750476]
[1757893655661,1.727,4614.5,4614.4,2.16710735]
[1757893655894,1.727,4614.5,4614.4,14.02678492]
[1757893656095,1.727,4614.5,4614.4,14.00511364]
[1757893656298,2.028,4614.5,4614.4,14.00511364]
[1757893656668,1.727,4614.5,4614.4,14.00511364]
[1757893657468,1.727,4614.5,4614.4,14.29821364]
[1757893657797,1.747,4614.8,4614.6,2.16703506]
[1757893657997,5.374,4614.8,4614.6,2.18870541]
[1757893658202,5.374,4614.8,4614.6,2.48180541]
[1757893658987,5.374,4614.8,4614.6,2.46013506]
[1757893659187,5.374,4614.8,4614.6,2.89319973]
[1757893661001,1.747,4614.8,4614.6,2.89319973]
[1757893661206,5.372,4614.8,4614.6,2.89319973]
[1757893661410,5.372,4614.8,4614.6,4.21469916]
[1757893662006,5.372,4614.8,4614.6,4.23636951]
[1757893662184,1.747,4614.8,4614.6,4.23636951]
[1757893662389,1.747,4614.8,4614.6,7.23636951]
[1757893662583,4.107,4614.8,4614.6,8.00689916]
[1757893663103,4.107,4614.8,4614.6,7.67369916]
[1757893663274,4.107,4614.8,4614.6,7.21469916]
[1757893664581,2.44,4614.8,4614.6,7.21469916]
[1757893665512,2.44,4614.8,4614.6,6.92159916]
[1757893666710,2.44,4614.8,4614.6,7.21469916]
[1757893667888,2.44,4614.8,4614.6,10.05722847]
[1757893669413,0.303,4614.7,4614.6,5.60009973]
[1757893669584,1.2123,4614.7,4614.6,5.60009973]
[1757893670483,1.2123,4614.7,4614.6,0.43306467]
[1757893670717,0.108,4614.6,4614.5,2.1670377]
[1757893670880,1.27453,4614.6,4614.4,2.16712559]
[1757893671085,0.301,4614.5,4614.4,2.16712559]
[1757893671285,1.2103,4614.5,4614.4,2.16712559]
[1757893675517,1.2103,4614.5,4614.4,2.18879687]
[1757893675927,1.2103,4614.5,4614.4,2.16712559]
[1757893677192,1.2103,4614.5,4614.4,2.18879687]
[1757893677802,1.2103,4614.5,4614.4,5.47920393]
[1757893678005,1.2103,4614.5,4614.4,5.45753265]
[1757893680998,0.7563,4614.5,4614.4,5.45753265]
[1757893681193,0.301,4614.5,4614.4,5.45753265]
[1757893681393,0.002,4614.7,4614.6,2.16703506]
[1757893681593,3.623,4614.7,4614.6,2.16703506]
[1757893681809,3.623,4614.7,4614.6,2.91977933]
[1757893682204,0.002,4614.7,4614.6,2.91977933]
[1757893682413,0.002,4614.7,4614.6,7.22917761]
[1757893682826,0.002,4614.7,4614.6,6.75967761]
[1757893683635,0.002,4614.7,4614.6,6.44337761]
[1757893683837,0.7443,4614.7,4614.6,8.89388639]
[1757893684024,0.002,4614.7,4614.6,8.89388639]
[1757893684199,0.002,4614.7,4614.6,9.21018639]
[1757893685929,0.002,4614.7,4614.6,8.89388639]
[1757893686322,0.002,4614.7,4614.6,9.21018639]
[1757893686711,0.002,4614.7,4614.6,8.89388639]
[1757893687735,1.2381,4614.7,4614.6,5.60347933]
[1757893687903,0.002,4614.7,4614.6,5.60347933]
[1757893688304,0.7443,4614.7,4614.6,5.60347933]
[1757893688812,0.002,4614.7,4614.6,5.60347933]
[1757893690238,0.002,4614.7,4614.6,5.91977933]
[1757893691324,0.002,4614.7,4614.6,5.60347933]
[1757893691900,0.3107,4614.7,4614.6,5.60347933]
[1757893692101,0.7443,4614.7,4614.6,5.60347933]
[1757893692710,0.002,4614.7,4614.6,5.60347933]
[1757893696628,0.3107,4614.7,4614.6,5.60347933]
[1757893696952,1.2381,4614.7,4614.6,5.60347933]
[1757893697464,1.37011,4614.7,4614.1,2.16826332]
[1757893697696,6.2134,4614.6,4614.2,2.16722292]
[1757893697947,0.3087,4614.3,4614.2,2.16722292]
[1757893698263,0.3087,4614.3,4613.7,3.001]
[1757893698264,0.3087,4614.3,4613.7,0.001]
[1757893698429,1.7194,4614.2,4613.0,0.001]
[1757893698754,3.792,4614.0,4613.0,0.001]
[1757893698934,0.3087,4613.1,4613.0,0.001]
[1757893699121,5.6017,4613.1,4613.0,0.001]
[1757893699314,6.5291,4613.1,4613.0,0.001]
[1757893699515,7.18201,4613.1,4613.0,0.001]
[1757893699746,7.26892864,4613.1,4613.0,0.001]
[1757893702754,7.18201,4613.1,4613.0,0.001]
[1757893703057,1.666,4613.1,4613.0,2.16878668]
[1757893703255,5.6017,4613.1,4613.0,2.16878668]
[1757893703562,6.0353,4613.1,4613.0,2.16878668]
[1757893704044,6.5291,4613.1,4613.0,0.001]
[1757893704260,7.00945644,4613.1,4613.0,0.001]
[1757893704727,7.00945644,4613.1,4613.0,2.16878668]
[1757893705138,6.08205644,4613.1,4613.0,2.16878668]
[1757893705348,5.6017,4613.1,4613.0,2.16878668]
[1757893705552,5.294,4613.1,4613.0,2.48508668]
[1757893706275,5.294,4613.1,4613.0,2.16878668]
[1757893706681,6.0363,4613.1,4613.0,0.001]
[1757893706865,6.5301,4613.1,4613.0,0.001]
[1757893707058,6.0363,4613.1,4613.0,0.001]
[1757893707376,5.294,4613.1,4613.0,2.16878668]
[1757893707582,5.294,4613.1,4613.0,2.48508668]
[1757893707967,5.294,4613.1,4613.0,2.50676454]
[1757893708345,5.294,4613.1,4613.0,2.48508668]
[1757893708571,6.0363,4613.1,4613.0,2.16878668]
[1757893708761,2.4083,4613.1,4613.0,2.16878668]
[1757893708943,6.0373,4613.1,4613.0,2.16878668]
[1757893710176,6.071,4613.1,4613.0,0.001]
[1757893710480,7.16743,4613.1,4613.0,0.001]
[1757893712155,3.53843,4613.1,4613.0,2.16878668]
[1757893712397,3.53843,4613.1,4613.0,0.001]
[1757893712398,6.5647,4613.1,4613.0,0.001]
[1757893715260,6.5647,4613.1,4613.0,2.16878668]
[1757893715465,6.072,4613.1,4613.0,2.16878668]
[1757893715691,6.072,4613.1,4613.0,0.001]
[1757893716514,6.5647,4613.1,4613.0,0.001]
[1757893716794,2.9347,4613.1,4613.0,0.001]
[1757893716996,6.5627,4613.1,4613.0,0.001]
[1757893717895,6.5627,4613.1,4613.0,2.16878668]
[1757893718261,6.5627,4613.1,4613.0,0.001]
[1757893718466,7.21897,4613.1,4613.0,0.001]
[1757893718679,7.21897,4613.1,4613.0,2.16878668]
[1757893720099,1.666,4613.1,4613.0,5.77079374]
[1757893720353,5.294,4613.1,4613.0,6.59199374]
[1757893721399,1.666,4613.1,4613.0,6.59199374]
[1757893721734,5.294,4613.1,4613.0,7.46808087]
[1757893721933,0.002,4613.7,4613.0,7.46808087]
[1757893722251,0.002,4613.7,4613.6,5.45791182]
[1757893722529,3.631,4613.7,4613.6,5.45791182]
[1757893722730,3.631,4613.7,4613.6,5.76951182]
[1757893722932,3.631,4613.7,4613.6,5.45791182]
[1757893727639,3.631,4613.7,4613.0,0.001]
[1757893727640,4.8811,4613.7,4613.0,0.001]
[1757893727865,0.65481,4613.6,4613.0,2.16878585]
[1757893728062,0.2901,4613.1,4613.0,0.001]
[1757893728269,3.9191,4613.1,4613.0,0.001]
[1757893728467,5.27101,4613.1,4613.0,0.001]
[1757893730177,6.06301,4613.1,4613.0,0.001]
[1757893732075,2.43401,4613.1,4613.0,0.001]
[1757893732244,6.06401,4613.1,4613.0,0.001]
[1757893732780,1.64201,4613.1,4613.0,0.001]
[1757893733090,3.63,4613.1,4613.0,3.29140706]
[1757893733385,3.9201,4613.1,4613.0,0.001]
[1757893733549,4.8801,4613.1,4613.0,0.001]
[1757893735787,4.8801,4613.1,4613.0,2.16878668]
[1757893736002,4.8801,4613.1,4613.0,0.001]
[1757893736170,5.36811,4613.1,4613.0,0.001]
[1757893740398,0.08691165,4613.5,4613.0,0.3119]
[1757893740789,0.08691165,4613.5,4613.4,2.16759873]
[1757893741120,3.71591165,4613.5,4613.4,6.29269873]
[1757893741265,0.002,4613.7,4613.6,2.16750476]
[1757893741471,0.002,4613.7,4613.6,2.1891798]
[1757893741785,0.002,4613.7,4613.6,6.3142798]
[1757893742086,0.002,4613.7,4613.6,6.29260476]
[1757893742295,0.002,4613.7,4613.6,8.10713297]
[1757893744120,0.002,4613.7,4613.6,7.77193297]
[1757893744421,0.002,4613.7,4613.6,2.16750476]
[1757893745635,0.7536,4613.7,4613.6,2.16750476]
[1757893745838,0.002,4613.7,4613.6,2.16750476]
[1757893745991,0.002,4613.7,4613.6,11.31527657]
[1757893746306,3.631,4613.7,4613.6,12.66573165]
[1757893746517,0.108,4613.6,4613.1,3.0]
[1757893746693,0.2969,4613.2,4613.0,0.001]
[1757893746891,4.423,4613.1,4613.0,0.001]
[1757893747090,5.83479,4613.1,4613.0,0.001]
[1757893747418,3.634,4613.1,4613.0,0.3119]
[1757893747602,3.634,4613.1,4613.0,2.47968668]
[1757893751797,3.634,4613.1,4613.0,2.16878668]
[1757893751989,3.9309,4613.1,4613.0,0.001]
[1757893752194,4.8707,4613.1,4613.0,0.001]
[1757893752624,4.8707,4613.1,4613.0,2.16878668]
[1757893754019,4.3856,4613.1,4613.0,2.16878668]
[1757893757398,3.634,4613.1,4613.0,2.47968668]
[1757893757600,0.002,4613.7,4613.1,2.16773969]
[1757893757798,0.002,4615.1,4613.7,2.16745778]
[1757893758034,3.642,4615.0,4614.1,2.16726989]
[1757893758230,3.642,4615.0,4614.1,3.23547336]
[1757893758431,3.642,4615.0,4614.1,3.21380067]
[1757893758659,3.642,4615.0,4614.6,2.16703506]
[1757893758832,0.002,4615.0,4614.9,2.16689419]
[1757893759037,0.002,4615.0,4614.9,4.84960908]
[1757893759239,0.002,4615.0,4614.9,4.82794014]
[1757893761372,0.002,4615.0,4614.9,4.49274014]
[1757893761865,0.002,4615.0,4614.9,2.60084054]
[1757893762365,0.2989,4615.0,4614.9,2.60084054]
[1757893763170,0.002,4615.0,4614.9,2.60084054]
[1757893765492,0.002,4615.0,4614.9,2.91174054]
[1757893767868,0.002,4615.2,4614.9,6.74760948]
[1757893768064,0.002,4615.2,4615.1,5.16680028]
[1757893768270,0.002,4615.2,4615.1,2.16680028]
[1757893768480,0.002,4615.2,4615.1,3.31356828]
[1757893769255,1e-08,4615.5,4615.4,2.16665944]
[1757893769420,1e-08,4615.5,4615.4,12.16561592]
[1757893769711,1e-08,4615.5,4615.4,15.14394933]
[1757893770980,1e-08,4615.5,4615.4,15.63664933]
[1757893771597,1e-08,4615.5,4615.4,15.14394933]
[1757893772816,1.17790001,4615.5,4615.4,2.16665944]
[1757893777204,1e-08,4615.5,4615.4,2.16665944]
[1757893777905,1e-08,4615.5,4615.4,11.29593125]
[1757893780687,1e-08,4615.5,4615.4,11.00353125]
[1757893781014,1e-08,4615.5,4615.4,11.29593125]
[1757893782408,1e-08,4615.5,4615.4,2.16665944]
[1757893782409,0.28920001,4615.5,4615.4,2.16665944]
[1757893783502,1e-08,4615.5,4615.4,2.16665944]
[1757893784106,1e-08,4615.5,4615.4,2.45905944]
[1757893785215,1e-08,4615.5,4615.4,7.19029449]
[1757893785538,1e-08,4615.5,4615.4,7.9965279]
[1757893785740,1e-08,4615.5,4615.4,7.6613279]
[1757893786327,1e-08,4615.7,4615.6,2.16656556]
[1757893786529,1e-08,4615.7,4615.6,5.98184829]
[1757893786731,1e-08,4615.7,4615.6,6.25258264]
[1757893789913,1e-08,4615.7,4615.6,5.96018264]
[1757893790126,0.72150001,4615.7,4615.6,5.16656556]
[1757893793931,0.28920001,4615.7,4615.6,5.16656556]
[1757893795251,1e-08,4615.7,4615.6,5.16656556]
[1757893795753,1e-08,4615.7,4615.6,5.46306556]
[1757893796120,1e-08,4615.7,4615.6,5.16656556]
[1757893797020,1e-08,4615.7,4615.6,14.29993737]
[1757893797622,1e-08,4615.7,4615.6,14.00343737]
[1757893799470,1e-08,4615.7,4615.6,2.16656556]
[1757893799471,1.22510001,4615.7,4615.6,2.16656556]
[1757893799771,1.34781001,4615.7,4615.6,2.16656556]
[1757893800459,1.22510001,4615.7,4615.6,2.16656556]
[1757893802558,0.29400001,4615.7,4615.6,2.16656556]
[1757893802764,0.76260001,4615.7,4615.6,2.16656556]
[1757893803344,1.25860001,4615.7,4615.6,2.16656556]
[1757893803571,0.76260001,4615.7,4615.6,2.16656556]
[1757893803954,1e-08,4615.7,4615.6,2.45386556]
[1757893805958,1e-08,4615.7,4615.6,2.47553121]
[1757893806178,1e-08,4615.7,4615.6,6.58078389]
[1757893807554,1e-08,4616.8,4616.5,3.0]
[1757893807865,0.54896306,4617.2,4616.9,2.16593214]
[1757893808059,0.54896306,4617.2,4617.1,2.16586168]
[1757893808260,0.05296306,4617.2,4617.1,2.16586168]
[1757893808459,0.80886306,4617.2,4617.1,2.16586168]
[1757893808784,1.30486306,4617.2,4617.1,2.16586168]
[1757893808991,1.89354937,4617.2,4617.1,2.16586168]
[1757893809695,0.80886306,4617.2,4617.1,2.16586168]
[1757893810788,1.30486306,4617.2,4617.1,2.16586168]
[1757893811290,0.80886306,4617.2,4617.1,2.16586168]
[1757893812391,1.30486306,4617.2,4617.1,2.16586168]
[1757893813362,1.30486306,4617.2,4616.3,2.16623702]
[1757893813691,0.108,4616.9,4616.6,2.16607314]
[1757893813990,0.2873,4616.7,4616.6,2.16609626]
[1757893814186,0.54976656,4616.7,4616.6,2.16609626]
[1757893814389,1.2519,4616.7,4616.6,2.16609626]
[1757893815004,0.2873,4616.7,4616.6,2.16609626]
[1757893815306,4.0946,4616.9,4616.6,2.16609626]
[1757893815462,3.626,4616.9,4616.7,0.02166049]
[1757893815976,4.0946,4616.9,4616.8,2.16600242]
[1757893816173,4.3819,4616.9,4616.8,2.16600242]
[1757893816573,0.05296306,4617.2,4617.0,2.16590859]
[1757893816773,0.05296306,4617.2,4617.1,2.18752029]
[1757893816977,0.05296306,4617.2,4617.1,2.16586168]
[1757893817178,0.80886306,4617.2,4617.1,2.16586168]
[1757893818181,0.80886306,4617.2,4617.1,2.18752029]
[1757893818495,0.34026306,4617.2,4617.1,2.16586168]
[1757893818899,0.05296306,4617.2,4617.1,2.16586168]
[1757893819199,0.05296306,4617.2,4617.1,2.88633871]
[1757893819606,0.4686,4617.9,4617.6,2.16562716]
[1757893819792,7.625,4617.7,4617.6,2.16562716]
[1757893819980,7.9123,4617.7,4617.6,2.16562716]
[1757893820181,8.3809,4617.7,4617.6,2.16562716]
[1757893820502,8.8769,4617.7,4617.6,2.16562716]
[1757893821704,5.2519,4617.7,4617.6,2.16562716]
[1757893822226,4.7559,4617.7,4617.6,2.16562716]
[1757893822891,4.0,4617.7,4617.6,2.16562716]
[1757893823092,4.0,4617.7,4617.6,2.89657877]
[1757893823293,1.17664855,4617.7,4617.6,3.40497442]
[1757893823493,3.624,4617.9,4617.8,2.16553337]
[1757893823701,3.624,4617.9,4617.8,5.73771332]
[1757893823902,3.624,4617.9,4617.8,6.62541767]
[1757893824626,0.002,4618.2,4618.1,2.16539269]
[1757893824990,0.002,4618.2,4618.1,2.45269269]
[1757893826499,0.002,4618.2,4618.1,2.16539269]
[1757893826700,0.2893,4618.2,4618.1,2.16539269]
[1757893827023,0.7579,4618.2,4618.1,2.16539269]
[1757893827211,0.2893,4618.2,4618.1,2.16539269]
[1757893827404,1.2539,4618.2,4618.1,2.16539269]
[1757893828230,5.16879,4618.2,4618.1,2.16539269]
[1757893828849,3.9123,4618.2,4618.1,2.16539269]
[1757893829051,0.002,4618.2,4618.1,2.45269269]
[1757893833121,0.002,4618.2,4618.1,2.47434661]
[1757893833502,0.002,4618.2,4618.1,5.93284661]
[1757893833704,0.002,4618.2,4618.1,9.86839269]
[1757893833926,0.002,4618.2,4618.1,10.73657841]
[1757893834812,1e-08,4618.7,4618.1,8.57118572]
[1757893835037,1e-08,4618.7,4618.6,2.16515827]
[1757893835252,1e-08,4618.7,4618.6,2.18680985]
[1757893835549,1e-08,4618.7,4618.6,2.47575827]
[1757893835748,1e-08,4618.7,4618.6,3.60205717]
[1757893836116,1e-08,4618.7,4618.6,3.62370875]
[1757893836516,1e-08,4618.7,4618.6,3.60205717]
[1757893837211,1e-08,4618.7,4618.6,3.29145717]
[1757893837762,1e-08,4618.7,4618.6,3.60205717]
[1757893838239,1.665,4619.2,4619.1,2.1649239]
[1757893838624,0.4286,4619.4,4619.3,2.16483016]
[1757893838831,0.4881,4619.8,4619.7,2.16464272]
[1757893839029,0.8004,4619.8,4619.7,2.16464272]
[1757893839418,1.229,4619.8,4619.7,2.14028707]
[1757893840045,1.229,4619.8,4619.0,3.0]
[1757893840340,1.0247,4619.7,4619.6,2.16468958]
[1757893840541,1.229,4619.7,4619.6,2.16468958]
[1757893840848,1.94565,4619.7,4619.6,2.16468958]
[1757893842324,1.229,4619.7,4619.6,2.16468958]
[1757893842712,4.852,4619.7,4619.6,2.16468958]
[1757893844443,1.231,4619.7,4619.6,2.16468958]
[1757893844608,4.852,4619.7,4619.6,2.16468958]
[1757893846449,0.002,4619.7,4619.6,2.47528958]
[1757893846743,3.623,4619.7,4619.6,2.16468958]
[1757893847469,3.622,4619.7,4619.6,2.16468958]
[1757893848564,0.002,4619.7,4619.6,2.16468958]
[1757893848766,0.002,4619.7,4619.6,2.18633647]
[1757893849063,0.002,4619.7,4619.6,2.16468958]
[1757893849270,1.231,4619.7,4619.6,2.16468958]
[1757893850336,0.7429,4619.7,4619.6,2.16468958]
[1757893850542,0.002,4619.7,4619.6,2.16468958]
[1757893851141,3.622,4619.7,4619.6,2.16468958]
[1757893851353,3.9343,4619.7,4619.6,2.16468958]
[1757893852458,0.002,4619.7,4619.6,2.16468958]
[1757893852659,3.622,4619.7,4619.6,2.16468958]
[1757893852847,0.002,4619.7,4619.6,2.16468958]
[1757893853858,0.3143,4619.7,4619.6,2.16468958]
[1757893854034,1.231,4619.7,4619.6,2.16468958]
[1757893856031,0.002,4619.7,4619.6,2.16468958]
[1757893856232,3.622,4619.7,4619.6,2.18633647]
[1757893856656,3.622,4619.7,4619.6,2.49023647]
[1757893856853,0.002,4619.7,4619.6,3.28409705]
[1757893857773,0.002,4619.7,4619.6,3.78229705]
[1757893858565,0.002,4619.7,4619.6,4.11749705]
[1757893858779,0.002,4619.7,4619.6,10.40229705]
[1757893858945,0.002,4619.7,4619.6,10.71585016]
[1757893859485,0.002,4619.7,4619.6,10.38065016]
[1757893860002,0.002,4619.7,4619.6,12.71886985]
[1757893860469,0.002,4619.7,4619.6,13.18046985]
[1757893860880,0.002,4619.7,4619.6,12.71886985]
[1757893861506,0.002,4619.7,4619.6,16.01688954]
[1757893861801,0.002,4619.7,4619.6,16.01788954]
[1757893862090,0.002,4619.7,4619.6,15.55628954]
[1757893862383,0.002,4619.7,4619.6,12.71986985]
[1757893862564,0.002,4619.7,4619.6,13.18146985]
[1757893862949,0.002,4619.7,4619.6,16.01788954]
[1757893863564,0.002,4619.7,4619.6,13.18146985]
[1757893863762,0.002,4619.7,4619.6,16.01788954]
[1757893864688,0.002,4619.7,4619.6,13.18146985]